Cogmind - Beta 13 @@@ ROGUE MODE // 2024.03.31 @ 17:41:14 Player: SonVince Result: Destroyed by G-34 Mercenary with Small Laser Performance ------------- Evolutions (0) 0 Regions Visited (2) 400 Robots Destroyed (53) 265 Value Destroyed (1202) 1202 Prototype IDs (0) 0 Alien Tech Used (0) 0 Bonus (8) 8 TOTAL SCORE: 1875 Bonus ------- High Alert Combat Kills 8 Cogmind --------- Core Integrity 0/250 Matter 286/300 Energy 234/240 System Corruption 0% Temperature Cool (6) Movement Treading (145) Location -10/Mines Parts ------- > --- POWER (1) -------- Nuclear Core > --- PROPULSION (2) --- Advanced Treads > --- UTILITY (2) ------ Small Storage Unit Signal Interpreter > --- WEAPON (2) ------- Autogun Grenade Launcher > --- INVENTORY (8) ---- Ion Engine Improved Terrain Scan Processor Reaction Control System Backup Laser III Backup Laser III Autogun Autogun Peak State ------------ > --- POWER ------------ Nuclear Core > --- PROPULSION ------- Light Treads Advanced Treads > --- UTILITY ---------- Small Storage Unit Signal Interpreter > --- WEAPON ----------- Autogun Autogun > --- INVENTORY -------- Ion Engine Aluminum Leg Aluminum Leg Backup Laser III Backup Laser III Autogun Autogun Grenade Launcher [Rating: 14] Favorites ----------- Power Ion Engine Engine Ion Engine Power Core Nuclear Core Propulsion Light Treads Treads Light Treads Utility Small Storage Unit Storage Small Storage Unit Processor Signal Interpreter Protection Light Armor Plating Weapon Autogun Energy Gun Backup Laser III Ballistic Gun Autogun Launcher Grenade Launcher Build | -11 -10 -10 ------- Run | Yrd Mat Min Slots Evolved . | . . . Power . | . . . Propulsion . | . . . Utility . | . . . Weapon . | . . . Parts Attached 16 | 6 7 3 Power 2 | 1 . 1 Engine 1 | 1 . . Core 1 | . . 1 Reactor . | . . . Propulsion 3 | 2 . 1 Treads 3 | 2 . 1 Leg . | . . . Wheel . | . . . Hover . | . . . Flight . | . . . Utility 3 | 1 2 . Device . | . . . Storage 1 | 1 . . Processor 1 | . 1 . Hackware . | . . . Protection 1 | . 1 . Artifact . | . . . Weapon 8 | 2 5 1 Energy Gun 5 | 2 3 . Energy Cannon . | . . . Ballistic Gun 2 | . 2 . Ballistic Cannon . | . . . Launcher 1 | . . 1 Special Weapon . | . . . Impact Weapon . | . . . Slashing Weapon . | . . . Piercing Weapon . | . . . Special Melee Weapon . | . . . Unidentified Prototypes . | . . . Parts Lost 2 | . . 2 Power . | . . . Propulsion 1 | . . 1 Utility . | . . . Weapon 1 | . . 1 Highest Loss Streak 1 | . . 1 To Critical Strikes . | . . . Average Slot Usage (%) 96 | . 93 97 Engine 10 | . 14 6 Core 3 | . . 7 Treads 27 | . 28 27 Storage 14 | . 14 14 Processor 9 | . 3 14 Protection 2 | . 4 . Energy Gun 9 | . 20 . Ballistic Gun 17 | . 7 26 Naked Turns . | . . . Heaviest Build 18 | 13 17 18 Greatest Support 42 | 40 40 42 Greatest Overweight (x) . | . . . Average Overweight (x) . | . . . Largest Inventory Capacity 8 | 8 8 8 Average Capacity 7 | 7 8 8 Most Carried 8 | 5 8 8 Average Carried 7 | 3 7 7 Final Capacity 8 | 8 8 8 Final Carried 8 | 3 8 7 Class Distribution -------------------- 100% | Mutant Dominant Class ---------------- Mutant | -10/Materials Mutant | -10/Mines Resources | -11 -10 -10 ----------- Run | Yrd Mat Min Matter Collected 869 | 192 186 491 Remotely . | . . . Salvage Created 1765 | . 726 1039 Parts 114 | . 59 55 Haulers Intercepted 1 | . 1 . Recyclers Shooed . | . . . Parts Field Recycled . | . . . Retrieved Matter . | . . . Parts Self-Destructed . | . . . Prevented . | . . . Kills | -11 -10 -10 ------- Run | Yrd Mat Min Combat Hostiles Destroyed 35 | . 9 26 Guns 34 | . 8 26 AOE 1 | . 1 . Classes Destroyed 10 | . 9 1 Worker 2 | . 2 . Builder 10 | . 8 2 Tunneler 1 | . . 1 Hauler 1 | . 1 . Recycler 1 | . 1 . Mechanic 1 | . 1 . Operator 1 | . 1 . Watcher 2 | . 2 . Swarmer 6 | . 3 3 Grunt 29 | . 6 23 Best Kill Streak 9 | . 5 9 Combat Bots Only 8 | . 4 8 Max Kills in Single Turn 2 | . 2 2 Gunslinging 1 | . . 1 Exploded 1 | . 1 . Melee . | . . . Uniques/NPCs Destroyed . | . . . Combat | -11 -10 -10 -------- Run | Yrd Mat Min Hostile Shots Fired 119 | . 37 82 Missed 34 | . 9 25 Damage Taken 942 | . 340 602 Core 257 | . 80 177 Absorbed by Shields . | . . . Core Remaining (%) 100 | 100 . . Volleys Fired 115 | . 50 65 Largest 2 | . 2 2 Hottest 80 | . 80 46 Shots Fired 215 | . 100 115 Gun 215 | . 100 115 Cannon . | . . . Launcher . | . . . Special . | . . . Kinetic 133 | . 18 115 Thermal 50 | . 50 . Explosive . | . . . Electromagnetic 32 | . 32 . Robot Hit Streak 14 | . 7 14 Robot Miss Streak 4 | . 4 2 Penetration Max . | . . . Secondary Targets 2 | . . 2 Max Gunslinging Chain 1 | . . 1 Shots Hit Robots 138 | . 57 81 Core Hits 67 | . 33 34 Critical Kills . | . . . Critical Parts Destroyed 1 | . . 1 Critical Strikes 2 | . 1 1 Destroy 1 | . . 1 Corrupt 1 | . 1 . Melee Attacks . | . . . Impact . | . . . Slashing . | . . . Piercing . | . . . Sneak Attacks . | . . . Combat Hostiles . | . . . Follow-up Attacks . | . . . Damage Inflicted 2269 | . 1027 1242 Guns 2080 | . 846 1234 Cannons . | . . . Explosions 177 | . 177 . Melee . | . . . Ramming 12 | . 4 8 Kinetic 1381 | . 147 1234 Thermal 580 | . 580 . Explosive . | . . . Electromagnetic 296 | . 296 . Impact . | . . . Slashing . | . . . Piercing . | . . . Highest Corruption . | . . . Average Corruption . | . . . Corruption Purged . | . . . Corruption Blocked . | . . . Overload Shots . | . . . Overflow Damage 3 | . 3 . Projectiles . | . . . Explosions 3 | . 3 . Melee . | . . . Knockbacks . | . . . Impact . | . . . Kinetic . | . . . Secondary . | . . . Self-Inflicted Damage 31 | . 31 . Shots 1 | . 1 . Rammed 7 | . 1 6 Targets Rammed 8 | . 1 7 Kicked . | . . . Crushed 1 | . . 1 Highest Temperature 132 | . 132 54 Average Temperature 24 | . 30 16 Received Heat Transfer 450 | . 150 300 Siege Activations . | . . . Robots Corrupted . | . . . Combat Hostiles . | . . . Parts Fried . | . . . Impact Corruptions . | . . . Robots Melted . | . . . Combat Hostiles . | . . . Parts Melted 2 | . 2 . Heat Transferred 1447 | . 1447 . Parts Sabotaged . | . . . Parts Stolen . | . . . Parts Stripped . | . . . Power Chain Reactions 3 | . 3 . Alert | -11 -10 -10 ------- Run | Yrd Mat Min Peak Influence 403 | . 175 403 Initial 24 | . . 24 Average 90 | . 65 118 Maximum Alert Level 2 | . . 2 Low Security (%) 90 | 100 100 80 Level 1 9 | . . 19 Level 2 . | . . . Level 3 . | . . . Level 4 . | . . . Level 5 . | . . . High Security . | . . . Max Security . | . . . Squads Dispatched 2 | . 1 1 Investigation 1 | . . 1 Extermination . | . . . Reinforcement 1 | . 1 . Assault . | . . . Garrison . | . . . Intercept . | . . . Searches Triggered . | . . . Construction Impeded . | . . . Haulers Reinforced . | . . . Active Scanning Responses . | . . . Cargo Convoy Interrupts . | . . . Stealth | -11 -10 -10 --------- Run | Yrd Mat Min Distress Signals 4 | . 2 2 Communications Jammed . | . . . Distress Signals . | . . . Times Spotted 50 | . 17 33 Peak Tracking Total 5 | . 5 5 Tactical Retreats 7 | . 2 5 Traps | -11 -10 -10 ------- Run | Yrd Mat Min Traps Triggered . | . . . Indirectly . | . . . Trap Hack Attempts . | . . . Triggered . | . . . Disarmed . | . . . Reprogrammed 6 | . 6 . Reused . | . . . Traps Extracted . | . . . Installed . | . . . Triggered . | . . . Machines | -11 -10 -10 ---------- Run | Yrd Mat Min Machines Disabled 1 | . 1 . Max in Single Turn 1 | . 1 . Machines Repaired . | . . . Machines Dismantled . | . . . Machines Sabotaged . | . . . Overloaded Fab Kills . | . . . Hacking | -11 -10 -10 --------- Run | Yrd Mat Min Machines Accessed 6 | . 5 1 Terminals 4 | . 4 . Fabricators . | . . . Repair Stations . | . . . Recycling Units 1 | . 1 . Scanalyzers . | . . . Garrison Access . | . . . Total Hacks 14 | . 13 1 Successful 5 | . 4 1 Failed 9 | . 9 . Catastrophic 3 | . 3 . Database Lockouts . | . . . Manual . | . . . Terminals 12 | . 12 . Fabricators . | . . . Repair Stations . | . . . Recycling Units 1 | . 1 . Scanalyzers . | . . . Garrison Access . | . . . Terminal Hacks 4 | . 3 1 Open Door 1 | . . 1 Alert Level 1 | . 1 . Reprogram Traps 1 | . 1 . Hauler Manifests 1 | . 1 . Fabricator Hacks . | . . . Repair Station Hacks . | . . . Recycling Unit Hacks 1 | . 1 . Report Inventory 1 | . 1 . Scanalyzer . | . . . Garrison Access Hacks . | . . . Unauthorized Hacks . | . . . Terminals . | . . . Fabricators . | . . . Repair Stations . | . . . Recycling Units . | . . . Scanalyzers . | . . . Garrison Access . | . . . Data Cores Recovered 1 | . 1 . Used 1 | . 1 . Hacking Detections 5 | . 5 . Full Trace Events 2 | . 2 . Feedback Events . | . . . Feedback Blocked . | . . . Robot Schematics Acquired . | . . . Robots Built . | . . . Authchips . | . . . Time . | . . . Total Robot Build Rating . | . . . Part Schematics Acquired . | . . . Parts Built . | . . . Authchips . | . . . Time . | . . . Total Part Build Rating . | . . . Parts Repaired . | . . . Time . | . . . Parts Recycled . | . . . Recycled Matter . | . . . Retrieved Matter . | . . . Retrieved Components . | . . . Parts Scanalyzed . | . . . Part Schematics Acquired . | . . . Parts Damaged . | . . . Bothacking | -11 -10 -10 ------------ Run | Yrd Mat Min Used RIF Installer . | . . . Robots Hacked . | . . . Non-combat . | . . . Combat . | . . . Robot Hacks Applied . | . . . Relay Couplers Released . | . . . Fabnet Peak Effective % . | . . . Robots Rewired . | . . . Allies Hacked . | . . . Hacks Repelled . | . . . Allies | -11 -10 -10 -------- Run | Yrd Mat Min Total Allies . | . . . Largest Group . | . . . Highest-Rated Group . | . . . Highest-Rated Ally . | . . . Total Orders . | . . . Ally Attacks . | . . . Total Damage . | . . . Kills . | . . . Allies Corrupted . | . . . Allies Melted . | . . . Intel | -11 -10 -10 ------- Run | Yrd Mat Min Robot Analysis Total . | . . . Derelict Logs Recovered 1 | . . 1 Drone Launches . | . . . Drone Recoveries . | . . . Exploration | -11 -10 -10 ------------- Run | Yrd Mat Min Turns Passed 2694 | 86 1242 1366 Spaces Moved 1178 | 57 633 488 Core 18 | 18 . . Treads 1160 | 39 633 488 Legs . | . . . Wheels . | . . . Hover . | . . . Flight . | . . . Fastest Speed 50 | 50 160 145 Average Speed 155 | 125 160 154 Slowest Speed 160 | 160 160 160 Overloaded Moves . | . . . Propulsion Burnouts . | . . . Robots Hopped . | . . . Cave-ins Triggered . | . . . Exploration Rate (%) 54 | 4 79 81 Regions Visited 2 Branch Regions 1 Pre-discovered Areas 1 | . . 1 Known Exits Taken 1 | . 1 . Unknown Exits Taken 1 | 1 . . Scrap Searched 1 | . . 1 Spaces Dug . | . . . Terrain Destroyed 5 | . 5 . Melee . | . . . Projectile . | . . . AOE 5 | . 5 . Terrain Rammed . | . . . Walls Destroyed . | . . . Machines Disabled . | . . . Actions | -11 -10 -10 --------- Run | Yrd Mat Min Total 1845 | 72 765 1008 Wait 497 | . 58 439 Move 1176 | 56 632 488 Hop . | . . . Pick Up 22 | 9 11 2 Fast Attach 2 | 1 1 . Attach 6 | 5 . 1 Detach . | . . . Swap 8 | . 6 2 Drop 11 | 1 6 4 Fire 115 | . 50 65 Melee . | . . . Ram . | . . . Kick . | . . . Crush 8 | . 1 7 Escape Stasis . | . . . Rewire . | . . . Trap . | . . . Miscellaneous . | . . . Route ------- -11/Scrapyard -10/Materials (discovered 3 exits: *Mat x2 / *Min) -10/Mines History --------- Turn | Location | Event 7 | -11/Scrapyard | Discovered new exit (range 16) 87 | -11/Scrapyard | Entered Materials 306 | -10/Materials | Build established: Mutant 946 | -10/Materials | Discovered new exit (range 15) 977 | -10/Materials | Identified exit to Materials 1220 | -10/Materials | Discovered exit to Materials (range 15) 1299 | -10/Materials | Discovered new exit (range 5) 1305 | -10/Materials | Identified exit to Mines 1329 | -10/Materials | Entered Mines 1390 | -10/Mines | Met a Derelict bent on vengeance 1396 | -10/Mines | Excavation squad dispatched 1396 | -10/Mines | A large section of the Mines collapsed 1646 | -10/Mines | Excavation squad dispatched 1896 | -10/Mines | Excavation squad dispatched 1981 | -10/Mines | Met a Derelict shopkeep closing up shop 2146 | -10/Mines | Excavation squad dispatched 2153 | -10/Mines | Learned location of Zion (-7) 2396 | -10/Mines | Excavation squad dispatched 2492 | -10/Mines | Core integrity fell below 50% 2615 | -10/Mines | Destroyed 8 combat bots 2631 | -10/Mines | Core integrity fell below 20% 2646 | -10/Mines | Excavation squad dispatched 2695 | -10/Mines | Destroyed by G-34 Mercenary with Small Laser Last Messages --------------- Acquired 123 matter. G-34 Mercenary destroyed. K-01 Serf collects debris. Acquired 36 matter. Slammed into T-07 Excavator. K-01 Serf collects debris. Slammed into T-07 Excavator. Searching scrap... Found Assault Rifle. Found 33 Matter. Slammed into T-07 Excavator. Crushed T-07 Excavator. T-07 Excavator destroyed. Slammed into T-07 Excavator. Lgt. Treads destroyed. G-34 Mercenary destroyed. Acquired 12 matter. K-01 Serf collects debris. ALERT: Derelict activity in mines confirmed. Dispatching additional escorted excavation squad. G-34 Mercenary destroyed. Map ----- +----------------------------------------------------+ | ???????# #??????#! #??????????## % | | ???????# #??????#%####???????????## %## | | ???????# ##?????#=#???????????????# #? | | ???????# #?????#=#???????????????# #? | | ???????# #######%#???????????????# #? | | ???????# ##!=!=%=#??????????????? #? | | ??????## *##*#######??###???????? #? | | ?????## %%=*%#?## ### ##?????? ? | | ????## =##[#?# ### ? | | ???## ###[#?# ? | | ???## ##?#=#?# ####? | | ???# ##??#%#?## ## #????? | | ???# ###??#[####% ##??????? #?????? | | ???## ##?#%%!!==! #???????? ???????? | | ????## #?######% % #????????????????? | | ?????# #??????## %##???????????????? | | ?????# #???????## ##??????????????? | | ?????## ##????????## #??????????????? | | ??????####?#######??# #??????????????? | | ??????????## ####t ######### ?????? | | ????####### ## g ??? | | ????# ## g ??? | | ????# ###### ## ??? | | ????## ### ! ##???????????????? | | ?????####?## [%* ##????????????????? | | ???????????## @## ##?????????????????? | | ????????????# ######??????????????????? | | ????????????## #???????????????????????? | | ?????????????###???????????????????????? | | ???????????????????????????????????????? | | ???????????????????????????????????????? | | ???????????????????????????????????????? | | ???????????????????????????????????????? | | ???????????????????????????????????????? | | ???????????????????????????????????????? | | ???????????????????????????????????????? | | ???????????????????????????????????????? | | ???????????????????????????????????????? | | ???????????????????????????????????????? | | ???????????????????????????????????????? | | ???????????????????????????????????????? | | ???????????????????????????????????????? | | | | | | | | | | | | | | | | | +----------------------------------------------------+ Best States ------------- Heat Dissipation 25 Energy Generation 14 Energy Capacity 250 Matter Stores 300 Matter Capacity 300 Sight Range 16 Terrain Scan Density 10 Armor Coverage 150 Evasion (%) 50 Recoil Reduction 2 Item Schematics ----------------- None Robot Schematics ------------------ None Fabricated ------------ Nothing Alien Tech Used ----------------- None Achievements -------------- Dynamic Key Challenges ------------ None Game ------ Seed HardlightSkeletonArray Manual? 0 Play Time 00:25:11 Cumulative 3.9 hours Start 2024.03.31 @ 17:14:45 End 2024.03.31 @ 17:41:14 Sessions 1 Manual Loads 0 Difficulty Rogue Special Mode None Game No. 8 Rogue 8 Adventurer 0 Explorer 0 Win Type - Total 0 Types 0/0/0/0/0/0/0/0/0 Lore% 5 Gallery% 7 Achievement% 10 Wizard Run 0 Options --------- Layout 0 ASCII 0 Keyboard 0 Movement Mouse Keybinds 0 Fullscreen 1 Font 24/Smallcaps Map View 56x25 Zoom Use 98% Tactical HUD 0 Map Filters NONE Filters NONE Steam 1 RUN: 80dbefaa-b6d0-4090-90b2-ddd847af181e